bitfinex-derivatives/quotes_SOLF0:USTF0_20251211
["timestamp","ask_amount","ask_price","bid_price","bid_amount"]
[1765482611382,3.23,134.97,134.96,0.05156187]
[1765482614799,3.07720408,134.98,134.96,0.05156187]
[1765482614998,6.21720408,134.98,134.96,0.05156187]
[1765482615386,3.14,134.97,134.96,0.05156187]
[1765482616190,0.04982056,134.99,134.96,3.27156187]
[1765482616595,0.04982056,134.99,134.97,5.04682006]
[1765482616792,0.04982056,134.99,134.97,3.22]
[1765482617394,3.18982056,134.99,134.96,0.05156187]
[1765482617596,3.18982056,134.99,134.97,1.82665729]
[1765482617900,0.04982056,134.99,134.97,5.04665729]
[1765482618097,0.04982056,134.99,134.97,3.22]
[1765482618785,0.04982056,134.99,134.98,1.82448437]
[1765482619297,0.04982056,134.99,134.98,5.06448437]
[1765482619507,0.04982056,134.99,134.98,3.24]
[1765482619795,63.02,135.02,134.98,6.31720408]
[1765482619994,6.34720408,135.07,135.01,3.24]
[1765482620197,3.27,135.04,134.99,3.24]
[1765482620393,9.9342,135.04,135.01,1.82434736]
[1765482620998,9.98200193,135.04,135.01,1.87632917]
[1765482621196,3.27,135.03,135.01,0.05198181]
[1765482621400,3.27,135.03,135.01,1.8761864]
[1765482621601,9.98200193,135.04,135.01,5.1161864]
[1765482621803,9.98200193,135.04,135.01,3.29198181]
[1765482623001,3.27,135.03,135.01,0.05198181]
[1765482623202,3.27,135.03,135.01,1.87565802]
[1765482623405,3.27,135.03,135.01,0.05198181]
[1765482623602,3.27,135.03,135.01,1.87521784]
[1765482623798,3.27,135.03,135.01,0.05198181]
[1765482624005,3.27,135.03,135.01,1.87525364]
[1765482624205,3.27,135.03,135.01,0.05198181]
[1765482624399,3.27,135.03,135.01,1.87548533]
[1765482624602,3.27,135.03,135.01,0.05198181]
[1765482624805,0.04780193,135.04,135.01,5.11475088]
[1765482625101,3.31780193,135.04,135.01,0.05198181]
[1765482625301,0.04780193,135.04,135.02,3.24]
[1765482625695,0.04780193,135.04,135.01,0.05198181]
[1765482625696,0.04780193,135.04,135.03,5.06178813]
[1765482625899,0.04780193,135.04,135.03,3.24]
[1765482626501,0.04780193,135.04,135.01,3.29198181]
[1765482626802,3.31780193,135.04,135.02,1.82093202]
[1765482627001,3.31780193,135.04,135.01,3.29198181]
[1765482627197,3.31780193,135.04,135.02,1.82124199]
[1765482627794,3.31780193,135.04,135.01,0.05198181]
[1765482627795,3.27,135.02,135.01,0.05198181]
[1765482628514,3.27,135.01,134.95,3.24]
[1765482628800,3.27,134.98,134.96,1.82290032]
[1765482629105,3.27,135.0,134.96,5.06290032]
[1765482629401,3.27,135.0,134.97,5.06290032]
[1765482629609,3.3268268,135.0,134.97,3.29051167]
[1765482629799,0.0568268,135.0,134.98,1.82302134]
[1765482630200,0.0568268,135.0,134.98,5.06302134]
[1765482630406,0.0568268,135.0,134.98,3.24]
[1765482633303,0.0568268,135.0,134.99,5.0640808]
[1765482633503,0.0568268,135.0,134.99,3.24]
[1765482636908,77.73300438,135.05,134.99,3.24]
[1765482637108,3.27,135.04,135.01,1.82262423]
[1765482637499,3.27,135.02,135.0,1.82262423]
[1765482637903,3.32153406,135.02,135.0,1.87486885]
[1765482638102,3.32153406,135.02,135.0,0.05224462]
[1765482638302,6.6656,135.01,135.0,1.87488671]
[1765482638506,14.73460438,135.01,135.0,0.05224462]
[1765482644620,3.27,135.0,134.93,6.6693]
[1765482644818,3.27,134.97,134.96,1.82463807]
[1765482646814,9.9376,134.97,134.95,0.05397635]
[1765482647122,3.27,134.96,134.95,0.05397635]
[1765482648016,0.05312082,134.98,134.95,3.29397635]
[1765482648210,0.05312082,134.98,134.97,5.06314526]
[1765482648408,0.05312082,134.98,134.97,3.24]
[1765482650822,0.05312082,134.98,134.97,9.9076]
[1765482651223,66.27,135.02,134.98,3.13]
[1765482651530,66.27,135.02,134.99,4.95172892]
[1765482651732,66.27,135.02,134.99,3.13]
[1765482652433,66.32201721,135.02,134.99,3.17992168]
[1765482654334,3.16,134.94,134.87,3.13]
[1765482654534,3.16,134.93,134.9,1.82471825]
[1765482654735,3.16,134.91,134.9,1.82471825]
[1765482655027,7.95900438,134.92,134.9,1.82471825]
[1765482655331,3.16,134.91,134.9,1.82471825]
[1765482655632,8.0131293,134.92,134.89,0.04985501]
[1765482655828,0.05412492,134.92,134.9,4.95352103]
[1765482656022,0.05412492,134.92,134.9,3.13]
[1765482660227,3.21412492,134.92,134.89,0.04985501]
[1765482660630,6.6708,134.91,134.89,0.04985501]
[1765482660841,3.21412492,134.92,134.89,0.04985501]
[1765482662040,3.16,134.91,134.89,0.04985501]
[1765482662341,9.88432492,134.92,134.89,0.04985501]
[1765482662637,14.63000438,134.91,134.89,0.04985501]
[1765482663036,3.16,134.9,134.89,0.04985501]
[1765482664541,0.05412492,134.92,134.89,3.17985501]
[1765482664747,0.05412492,134.92,134.9,4.94669847]
[1765482664937,0.05412492,134.92,134.9,3.13]
[1765482666839,3.16,134.91,134.89,0.04985501]
[1765482668151,9.8306,134.91,134.89,0.04985501]
[1765482669860,3.16,134.85,134.77,3.13]
[1765482670054,3.16,134.82,134.81,6.809e-05]
[1765482670349,3.16,134.8,134.76,3.13]
[1765482670553,3.16,134.79,134.76,3.13]
[1765482670941,3.20788482,134.79,134.76,3.18454058]
[1765482671250,3.16,134.78,134.76,0.05454058]
[1765482671845,66.18,134.78,134.76,0.05454058]
[1765482672147,103.88,134.76,134.69,3.13]
[1765482672352,63.04,134.76,134.72,3.13]
[1765482672646,63.04,134.76,134.66,103.9545]
[1765482672647,63.04,134.76,134.73,1.81671112]
[1765482672841,66.2,134.77,134.74,4.94671112]
[1765482673040,3.2166578,134.77,134.74,3.17865963]
[1765482673443,66.2566578,134.77,134.74,3.17865963]
[1765482674049,66.2566578,134.77,134.74,0.04865963]
[1765482674249,3.2166578,134.77,134.74,0.04865963]
[1765482674445,66.2566578,134.77,134.74,0.04865963]
[1765482674848,63.0966578,134.77,134.74,3.22865963]
[1765482675050,0.0566578,134.77,134.74,3.22865963]
[1765482675353,66.4466578,134.77,134.74,3.22865963]
[1765482675549,66.4466578,134.77,134.74,0.04865963]
[1765482675755,3.33,134.76,134.74,0.04865963]
[1765482676452,63.1166578,134.77,134.74,0.04865963]
[1765482676645,66.4466578,134.77,134.74,0.04865963]
[1765482676844,3.33,134.76,134.74,0.04865963]
[1765482679446,3.31,134.75,134.74,0.04865963]
[1765482679846,66.39,134.75,134.74,0.04865963]
[1765482681656,3.31,134.74,134.68,3.18]
[1765482681853,3.31,134.74,134.7,4.96875314]
[1765482682051,3.31,134.74,134.71,1.79875314]
[1765482682651,3.35864345,134.74,134.71,1.85265187]
[1765482682851,3.35864345,134.74,134.71,0.05389873]
[1765482683052,3.35864345,134.74,134.71,1.85268531]
[1765482683360,3.35864345,134.74,134.71,0.05389873]
[1765482683659,3.35864345,134.74,134.71,1.85228449]
[1765482683861,3.35864345,134.74,134.71,0.05389873]
[1765482684057,3.35864345,134.74,134.71,1.85226372]
[1765482684262,3.35864345,134.74,134.71,0.05389873]
[1765482684561,3.35864345,134.74,134.71,1.85117864]
[1765482684763,3.35864345,134.74,134.71,0.05389873]
[1765482684960,3.35864345,134.74,134.71,1.85119828]
[1765482685161,3.35864345,134.74,134.71,0.05389873]
[1765482685361,3.35864345,134.74,134.71,1.85119855]
[1765482685561,3.35864345,134.74,134.71,0.05389873]
[1765482685757,3.35864345,134.74,134.71,1.8507448]
[1765482686059,3.35864345,134.74,134.71,0.05389873]
[1765482686254,3.35864345,134.74,134.71,1.8507448]
[1765482686455,3.35864345,134.74,134.71,0.05389873]
[1765482688760,0.04864345,134.74,134.71,3.22389873]
[1765482689160,0.04864345,134.74,134.72,4.96656238]
[1765482689356,0.04864345,134.74,134.73,3.17]
[1765482689567,0.04864345,134.74,134.71,3.22389873]
[1765482689758,0.04864345,134.74,134.72,4.96664536]
[1765482689958,0.04864345,134.74,134.73,1.79664536]
[1765482690159,0.04864345,134.74,134.72,3.17]
[1765482691770,3.31,134.73,134.71,0.05389873]
[1765482692455,66.41,134.72,134.71,0.05389873]
[1765482693660,10.03764345,134.74,134.71,0.05389873]
[1765482693862,66.41,134.73,134.71,0.05389873]
[1765482694370,3.31,134.72,134.71,0.05389873]
[1765482695257,3.31,134.72,134.63,3.17]
[1765482695455,7.34472998,134.69,134.65,1.79985692]
[1765482695656,3.31,134.73,134.68,1.79985692]
[1765482695862,63.1,134.72,134.69,3.17]
[1765482696066,66.41,134.72,134.66,3.17]
[1765482696269,0.05630582,134.7,134.69,1.79855242]
[1765482696477,3.31,134.75,134.7,3.17]
[1765482696771,63.12,134.76,134.73,3.17]
[1765482697266,66.43,134.76,134.73,3.17]
[1765482697767,66.47994489,134.76,134.73,3.21753837]
[1765482698167,66.47994489,134.76,134.73,0.04753837]
[1765482698966,63.16994489,134.76,134.73,3.21753837]
[1765482699372,63.16994489,134.76,134.75,3.17]
[1765482699566,0.04994489,134.76,134.75,3.17]
[1765482699767,63.12,134.81,134.75,4.65]
[1765482700071,63.12,134.81,134.79,1.80024271]
[1765482700266,63.12,134.81,134.78,3.17]
[1765482700466,63.12,134.81,134.79,1.79992236]
[1765482700774,63.17532984,134.81,134.79,1.8559144]
[1765482701073,63.17532984,134.81,134.79,0.05599204]
[1765482701273,63.17532984,134.81,134.79,1.85569166]
[1765482701464,63.17532984,134.81,134.79,0.05599204]
[1765482701660,63.17532984,134.81,134.79,1.8567822]
[1765482701864,63.17532984,134.81,134.79,0.05599204]
[1765482702170,0.05532984,134.81,134.8,4.97054818]
[1765482702473,0.05532984,134.81,134.8,3.17]
[1765482703577,0.05532984,134.81,134.79,0.05599204]
[1765482703877,0.05532984,134.81,134.8,1.80259659]
[1765482704571,0.05532984,134.81,134.8,4.97259659]
[1765482704875,0.05532984,134.81,134.8,3.17]
[1765482708970,0.05532984,134.81,134.79,0.05599204]
[1765482710178,0.05532984,134.81,134.8,1.8067921]
[1765482710179,3.40532984,134.81,134.8,1.8067921]
[1765482710376,3.40532984,134.81,134.79,0.05599204]
[1765482711376,3.40532984,134.81,134.73,3.12]
[1765482711573,3.35,134.78,134.76,1.8117866]
[1765482711781,3.35,134.78,134.75,1.8117866]
[1765482711978,3.35,134.78,134.75,1.81259997]
[1765482712379,3.35,134.78,134.74,1.81259997]
[1765482712988,3.35,134.76,134.75,0.05236456]
[1765482717681,3.35,134.75,134.68,3.12]
[1765482717986,10.69472998,134.73,134.72,1.81882643]
[1765482718185,3.35,134.73,134.72,1.81882643]
[1765482720289,0.04817368,134.74,134.72,1.81882643]
[1765482720491,0.04817368,134.74,134.73,3.12]
[1765482720988,0.04817368,134.74,134.72,3.12]
[1765482722089,3.39817368,134.74,134.71,0.05595133]
[1765482722290,3.35,134.73,134.66,3.12]
[1765482722598,3.35,134.69,134.68,1.82283275]
[1765482722789,3.35,134.69,134.59,3.12]
[1765482723091,111.27002998,134.71,134.59,3.12]
[1765482723092,10.69472998,134.68,134.59,3.12]
[1765482723287,10.69472998,134.68,134.62,0.04732499]
[1765482723288,0.05438477,134.65,134.62,0.04732499]
[1765482723496,0.05438477,134.65,134.62,3.16732499]
[1765482724093,0.05438477,134.65,134.64,1.82396954]
[1765482724888,3.40438477,134.65,134.64,1.82396954]
[1765482725087,0.05438477,134.65,134.64,1.82396954]
[1765482725690,0.05438477,134.65,134.64,4.94396954]
[1765482725901,0.05438477,134.65,134.64,3.12]
[1765482726085,0.05438477,134.65,134.62,3.16732499]
[1765482726397,0.05438477,134.65,134.64,1.82186129]
[1765482727288,0.05438477,134.65,134.64,4.94186129]
[1765482727493,0.05438477,134.65,134.64,3.12]
[1765482728793,3.35,134.71,134.66,3.12]
[1765482729095,3.35,134.71,134.67,1.81871871]
[1765482729894,3.39862482,134.7,134.68,0.05503912]
[1765482734996,0.04862482,134.7,134.68,0.05503912]
[1765482735496,0.04862482,134.7,134.69,3.07]
[1765482737397,3.05,134.76,134.69,3.07]
[1765482737398,3.05,134.76,134.71,3.07]
[1765482737599,3.05,134.76,134.72,1.81434952]
[1765482738283,3.09801932,134.75,134.73,0.05516514]
[1765482739099,3.15,134.74,134.64,3.32]
[1765482739288,3.15,134.73,134.7,1.81532306]
[1765482739490,3.15,134.73,134.69,1.81532306]
[1765482739689,3.15,134.73,134.68,1.81532306]
[1765482740297,3.15,134.71,134.69,0.05517702]
[1765482740894,3.15,134.7,134.69,0.05517702]
[1765482744106,3.15,134.69,134.63,3.32]
[1765482744295,3.15,134.69,134.64,1.81788764]
[1765482744496,3.15,134.69,134.65,3.32]
[1765482744798,63.12,134.71,134.65,3.32]
[1765482745004,66.27,134.71,134.65,3.32]
[1765482745195,0.05531403,134.69,134.67,0.05055266]
[1765482745394,3.20531403,134.69,134.67,0.05055266]
[1765482750908,0.05531403,134.69,134.68,1.81934743]
[1765482751100,0.05531403,134.69,134.68,5.13934743]
[1765482751296,0.05531403,134.69,134.68,3.32]
[1765482751904,3.20531403,134.69,134.67,0.05055266]
[1765482752998,0.05531403,134.69,134.68,1.82155584]
[1765482753207,3.20531403,134.69,134.67,0.05055266]
[1765482754611,3.15,134.67,134.57,3.32]
[1765482754807,3.15,134.66,134.62,1.82675532]
[1765482755005,3.15,134.66,134.59,3.32]
[1765482755216,9.8342,134.64,134.61,1.82774921]
[1765482755709,9.88599575,134.64,134.61,1.82774921]
[1765482756313,3.15,134.63,134.61,1.82774921]
[1765482756509,9.8347,134.63,134.61,1.82774921]
[1765482756711,3.15,134.62,134.57,3.32]
[1765482756910,0.04674104,134.61,134.6,1.82913335]
[1765482757309,3.15,134.53,134.44,7.16016264]
[1765482757516,0.04811144,134.5,134.45,3.32]
[1765482757710,0.04811144,134.5,134.47,3.32]
[1765482757909,3.15,134.55,134.47,3.32]
[1765482758117,3.15,134.52,134.47,3.32]
[1765482758411,3.15,134.53,134.48,1.83016816]
[1765482758615,3.15,134.51,134.49,1.83016816]
[1765482758918,3.20334083,134.51,134.49,0.04811144]
[1765482759213,3.15,134.57,134.5,3.32]
[1765482759516,3.15,134.57,134.53,1.82582082]
[1765482759817,3.15,134.57,134.54,1.82582082]
[1765482760014,3.15,134.57,134.5,3.32]
[1765482760315,0.05620293,134.55,134.53,1.82570394]
[1765482761513,3.20620293,134.55,134.53,1.82570394]
[1765482762113,3.20620293,134.55,134.52,0.05054059]
[1765482762914,9.89500293,134.55,134.52,0.05054059]
[1765482763220,0.05620293,134.55,134.52,0.05054059]
[1765482763421,0.05620293,134.55,134.53,5.14247017]
[1765482763614,0.05620293,134.55,134.52,0.05054059]
[1765482763816,0.05620293,134.55,134.53,1.82207271]
[1765482764122,0.05620293,134.55,134.54,1.82207271]
[1765482764417,0.05620293,134.55,134.52,0.05054059]
[1765482764620,3.20620293,134.55,134.54,1.82170766]
[1765482764812,3.20620293,134.55,134.53,1.82170766]
[1765482765820,3.20620293,134.55,134.54,1.82170766]
[1765482766015,0.05620293,134.55,134.54,3.32]
[1765482766426,66.29,134.6,134.54,3.32]
[1765482766622,3.15,134.59,134.55,1.82116779]
[1765482767517,3.19943008,134.58,134.56,0.04678396]
[1765482768729,3.2,134.57,134.56,0.04678396]
[1765482769122,3.2,134.57,134.5,3.32]
[1765482769317,3.2,134.56,134.52,1.82197368]
[1765482770029,3.24776967,134.55,134.53,0.04826269]
[1765482771524,3.24776967,134.55,134.44,107.96406264]
[1765482771525,3.2,134.52,134.44,3.84016264]
[1765482771725,3.2,134.51,134.45,1.82109587]
[1765482772024,3.2,134.5,134.45,1.82109587]
[1765482772413,3.2,134.48,134.46,0.05344395]
[1765482772817,3.2,134.48,134.37,63.12]
[1765482773130,3.2,134.48,134.36,3.1]
[1765482773131,104.1198,134.45,134.36,3.1]
[1765482773317,63.2,134.44,134.36,3.1]
[1765482773517,11.51976675,134.43,134.36,3.1]
[1765482773724,18.21436675,134.43,134.36,3.1]
[1765482774036,11.51976675,134.4,134.3,107.3326]
[1765482774228,0.0485543,134.36,134.35,1.81743148]
[1765482774427,0.04731331,134.37,134.35,1.81743148]
[1765482775426,0.04731331,134.37,134.32,1.81743148]
[1765482775634,0.05479711,134.36,134.29,3.1]
[1765482775832,0.05479711,134.36,134.32,1.81567812]
[1765482776127,0.05479711,134.36,134.34,4.91567812]
[1765482776332,0.05479711,134.36,134.35,1.81188707]
[1765482776521,0.05479711,134.36,134.35,1.81192305]
[1765482777130,0.05479711,134.36,134.32,3.1]
[1765482777430,0.05479711,134.36,134.29,3.1]
[1765482777635,0.0571962,134.34,134.31,4.91062277]
[1765482777833,0.0571962,134.34,134.32,1.81062277]
[1765482778030,0.0571962,134.34,134.26,110.9667]
[1765482778031,0.0571962,134.34,134.29,3.1]
[1765482778231,0.0571962,134.34,134.31,1.8102733]
[1765482778532,0.0571962,134.34,134.32,1.8102733]
[1765482778722,0.0571962,134.34,134.32,3.1]
[1765482779029,0.0571962,134.34,134.28,3.1]
[1765482779226,0.0571962,134.34,134.31,1.80571095]
[1765482779425,0.0571962,134.34,134.32,1.80571095]
[1765482779645,0.0571962,134.34,134.31,3.1]
[1765482779833,0.0571962,134.34,134.32,1.80531844]
[1765482780339,0.0571962,134.34,134.27,3.1]
[1765482780530,0.0571962,134.34,134.29,1.80674288]
[1765482780829,0.0571962,134.34,134.28,1.80674288]
[1765482781019,0.0571962,134.34,134.27,3.1]
[1765482781220,0.0571962,134.34,134.28,4.90783227]
[1765482781431,0.04797017,134.32,134.3,4.90783227]
[1765482781636,0.05514038,134.32,134.31,1.80783227]
[1765482781828,0.05514038,134.32,134.31,3.1]
[1765482784243,63.26,134.38,134.31,3.1]
[1765482784427,6.6964,134.39,134.32,4.89813584]
[1765482784636,6.6964,134.39,134.33,1.79813584]
[1765482784936,6.6964,134.39,134.32,3.1]
[1765482785239,6.6964,134.39,134.33,1.79770571]
[1765482785543,0.05496512,134.37,134.35,3.1]
[1765482785934,0.05496512,134.37,134.34,0.04801546]
[1765482786131,0.05496512,134.37,134.34,4.94494218]
[1765482786331,0.05496512,134.37,134.34,0.04801546]
[1765482787538,0.05496512,134.37,134.34,3.14801546]
[1765482788042,0.05496512,134.37,134.34,0.04801546]
[1765482788234,0.05496512,134.37,134.34,3.14801546]
[1765482788541,104.1917,134.36,134.34,0.04801546]
[1765482788745,104.2084,134.34,134.23,3.1]
[1765482788946,115.72816675,134.34,134.27,1.79832402]
[1765482789252,104.2285,134.31,134.2,3.1]
[1765482789436,63.28,134.3,134.26,3.1]
[1765482789644,126.4817,134.36,134.26,3.1]
[1765482789645,0.05343145,134.29,134.26,3.1]
[1765482789852,0.05343145,134.29,134.28,3.1]
[1765482791747,0.05343145,134.29,134.25,3.1]
[1765482791940,0.05343145,134.29,134.27,1.79580052]
[1765482792142,0.05343145,134.29,134.25,3.1]
[1765482793549,0.05343145,134.29,134.22,6.7045]
[1765482793550,0.05343145,134.29,134.26,4.89488494]
[1765482793749,0.05343145,134.29,134.26,3.1]
[1765482795256,0.05343145,134.29,134.22,6.7045]
[1765482795257,0.05343145,134.29,134.23,3.1]
[1765482795551,0.05343145,134.29,134.25,4.89475039]
[1765482795741,0.05343145,134.29,134.25,3.1]
[1765482796750,0.05343145,134.29,134.27,3.1]
[1765482802662,0.05343145,134.29,134.23,6.7039]
[1765482802663,0.05343145,134.29,134.24,3.05]
[1765482802865,0.05343145,134.29,134.27,3.05]
[1765482805365,0.05343145,134.29,134.21,3.05]
[1765482805669,0.05430333,134.26,134.25,4.8555942]
[1765482805865,0.05618907,134.27,134.26,3.05]
[1765482806072,0.04854,134.28,134.26,3.05]
[1765482806769,6.75054,134.28,134.23,3.05]
[1765482807070,6.75054,134.28,134.25,3.05]
[1765482807376,6.75411515,134.28,134.25,3.05]
[1765482807964,0.05211515,134.28,134.25,3.05]
[1765482809573,0.05211515,134.28,134.26,1.80926388]
[1765482809772,5.62704056,134.34,134.27,3.05]
[1765482810069,70.71534043,134.35,134.29,4.85790585]
[1765482810270,77.41374043,134.35,134.3,3.05]
[1765482810470,77.41374043,134.35,134.31,4.85839574]
[1765482810770,6.75269376,134.34,134.32,0.05612006]
[1765482810977,6.75623333,134.34,134.32,0.05102334]
[1765482812177,12.38327389,134.34,134.32,0.05102334]
[1765482813172,5.62704056,134.33,134.32,0.05102334]
[1765482814475,5.62704056,134.33,134.32,3.10102334]
[1765482814675,5.62704056,134.33,134.32,0.05102334]
[1765482814875,5.68427389,134.34,134.32,3.10102334]
[1765482815183,5.62704056,134.33,134.32,3.10102334]
[1765482816170,0.05723333,134.34,134.32,3.10102334]
[1765482816376,11.90094339,134.39,134.34,3.05]
[1765482816577,3.08,134.39,134.35,4.87803918]
[1765482816776,3.08,134.39,134.35,3.05]
[1765482817177,8.17131051,134.39,134.35,3.05]
[1765482817377,0.05623935,134.38,134.37,3.05]
[1765482817582,0.05623935,134.38,134.36,0.05100977]
[1765482819494,0.05623935,134.38,134.36,3.10100977]
[1765482820186,0.05623935,134.38,134.36,0.05100977]
[1765482820387,8.22754986,134.38,134.36,0.05100977]
[1765482820588,3.08,134.37,134.36,0.05100977]
[1765482821584,0.05623935,134.38,134.36,3.10100977]
[1765482822784,3.13623935,134.38,134.36,0.05100977]
[1765482823685,66.38,134.37,134.36,0.05100977]
[1765482823891,63.3,134.37,134.36,0.05100977]
[1765482824289,66.38,134.37,134.36,0.05100977]
[1765482826490,63.3,134.37,134.36,0.05100977]
[1765482829180,66.51,134.37,134.36,0.05100977]
[1765482829395,3.21,134.34,134.29,3.06]
[1765482829597,10.60534043,134.34,134.3,1.83122444]
[1765482829787,10.60534043,134.34,134.29,3.06]
[1765482830390,0.05680296,134.33,134.3,3.11561157]
[1765482830589,0.05330384,134.33,134.3,3.11032577]
[1765482830895,6.75280384,134.33,134.3,3.11032577]
[1765482831606,0.05330384,134.33,134.3,3.11032577]
[1765482831789,3.26330384,134.33,134.3,3.11032577]
[1765482831987,0.05330384,134.33,134.3,3.11032577]
[1765482832196,6.75270384,134.33,134.3,3.11032577]
[1765482832385,3.26330384,134.33,134.3,3.11032577]
[1765482832590,63.35330384,134.33,134.3,3.11032577]
[1765482833186,3.21,134.32,134.3,0.05032577]
[1765482833596,3.21,134.31,134.3,0.05032577]
[1765482833793,10.60534043,134.31,134.3,0.05032577]
[1765482836190,3.21,134.31,134.3,0.05032577]
[1765482839606,9.9124,134.27,134.22,3.06]
[1765482839807,5.09131051,134.32,134.24,3.06]
[1765482840000,3.21,134.29,134.26,1.83503905]
[1765482840203,3.21,134.29,134.24,3.06]
[1765482840498,0.05491596,134.28,134.25,3.08572414]
[1765482840704,63.37491596,134.28,134.25,3.08572414]
[1765482841296,63.37491596,134.28,134.27,3.06]
[1765482841804,0.05491596,134.28,134.27,3.06]
[1765482842105,6.6997,134.33,134.27,3.06]
[1765482842408,6.6997,134.33,134.29,3.06]
[1765482842706,63.32,134.32,134.29,3.06]
[1765482842902,63.37321653,134.32,134.29,3.11195623]
[1765482843901,66.58321653,134.32,134.29,3.11195623]
[1765482844105,63.37321653,134.32,134.29,3.11195623]
[1765482844506,66.58321653,134.32,134.29,3.11195623]
[1765482844704,63.37321653,134.32,134.29,3.11195623]
[1765482845510,0.05321653,134.32,134.31,3.06]
[1765482845711,0.05321653,134.32,134.29,3.11195623]
[1765482847312,5.09131051,134.38,134.31,3.06]
[1765482847509,5.09131051,134.38,134.29,1.53195623]
[1765482847510,6.6975,134.37,134.33,3.06]
[1765482848214,0.04872139,134.36,134.34,0.04872322]
[1765482848511,3.25872139,134.36,134.34,0.04872322]
[1765482849313,3.21,134.33,134.25,3.06]
[1765482849519,3.21,134.33,134.29,1.83652601]
[1765482849720,3.21,134.33,134.28,1.83652601]
[1765482850111,3.21,134.3,134.29,0.05694779]
[1765482850415,3.21,134.29,134.19,3.06]
[1765482850618,3.21,134.27,134.24,1.83919709]
[1765482850818,7.39534043,134.25,134.19,3.06]
[1765482851028,3.21,134.24,134.21,1.83991731]
[1765482851322,3.25735475,134.24,134.21,1.86810293]
[1765482851528,3.25735475,134.24,134.21,0.02818562]
[1765482851718,3.25735475,134.24,134.21,1.8677062]
[1765482852021,3.25735475,134.24,134.21,0.02818562]
[1765482852327,3.21,134.23,134.21,0.02818562]
[1765482852521,66.53,134.22,134.21,0.02818562]
[1765482853920,63.32,134.22,134.21,0.02818562]
[1765482854231,3.23,134.23,134.21,0.02818562]
[1765482854432,63.32,134.22,134.21,0.02818562]
[1765482855433,0.04735475,134.24,134.21,3.33818562]
[1765482856733,0.04735475,134.24,134.21,0.02818562]
[1765482856734,3.27735475,134.24,134.21,0.02818562]
[1765482857226,3.23,134.21,134.12,3.31]
[1765482857426,3.23,134.18,134.15,1.83252152]
[1765482857624,7.39534043,134.19,134.14,3.31]
[1765482857819,10.62534043,134.19,134.14,3.31]
[1765482858138,0.05712694,134.18,134.14,3.31]
[1765482858329,3.28712694,134.18,134.08,122.39508063]
[1765482858633,0.04979654,134.14,134.11,3.31]
[1765482858820,0.04979654,134.14,134.13,4.96070137]
[1765482859027,0.04979654,134.14,134.13,3.13]
[1765482859620,0.04979654,134.14,134.13,4.63]
[1765482859822,14.10154043,134.2,134.13,4.63]
[1765482860025,63.34,134.2,134.15,3.13]
[1765482860225,63.34,134.2,134.16,1.8280755]
[1765482860528,63.34,134.2,134.17,3.13]
[1765482860734,63.34,134.2,134.13,3.13]
[1765482860930,0.05557366,134.18,134.15,5.0068878]
[1765482861131,0.05557366,134.18,134.15,3.17979654]
[1765482862333,0.05557366,134.18,134.16,4.95595232]
[1765482862532,0.05557366,134.18,134.16,3.13]
[1765482863036,0.05557366,134.18,134.17,4.95492804]
[1765482863335,0.05557366,134.18,134.17,3.13]
[1765482863741,0.05557366,134.18,134.15,3.17979654]
[1765482864040,0.05557366,134.18,134.17,1.82484169]
[1765482864243,0.05557366,134.18,134.15,3.17979654]
[1765482864532,0.05557366,134.18,134.16,1.82539665]
[1765482864934,3.41557366,134.18,134.15,0.04979654]
[1765482865939,0.05557366,134.18,134.15,3.17979654]
[1765482866638,6.76287366,134.18,134.15,0.04979654]
[1765482866835,3.36,134.17,134.15,0.04979654]
[1765482867430,10.0676,134.17,134.15,0.04979654]
[1765482867738,3.36,134.16,134.15,0.04979654]
[1765482869237,63.36,134.16,134.15,0.04979654]
[1765482869439,66.77557366,134.18,134.15,0.04979654]
[1765482869832,63.41557366,134.18,134.15,3.17979654]
[1765482870033,3.41557366,134.18,134.15,0.04979654]
[1765482870241,0.05557366,134.18,134.15,3.17979654]
[1765482870541,0.05557366,134.18,134.17,3.13]
[1765482872549,10.0641,134.24,134.17,3.13]
[1765482872850,3.36,134.24,134.18,4.95344736]